Cogmind - Beta 13 @@@ ROGUE MODE // 2024.06.10 @ 18:18:38 Player: ZergFTW Result: Destroyed by 3X-HZ3(R) with Subdweller Machine Gun Performance ------------- Evolutions (0) 0 Regions Visited (3) 600 Robots Destroyed (42) 210 Value Destroyed (650) 650 Prototype IDs (2) 40 Alien Tech Used (0) 0 Bonus (3) 3 TOTAL SCORE: 1503 Bonus ------- Follower Combat Kills 56 Friendly Fire -53 Cogmind --------- Core Integrity 0/250 Matter 179/300 Energy 98/100 System Corruption 2% Temperature Cool (6) Movement Rolling (80) Location -10/Subcaves Parts ------- > --- POWER (1) -------- (None) > --- PROPULSION (2) --- Wheel Wheel > --- UTILITY (2) ------ Signal Interpreter > --- WEAPON (2) ------- Improved Light Cannon > --- INVENTORY (5) ---- Light Ion Engine Sensor Array Experimental Sensor Array Heavy Assault Rifle Improved Light Cannon Peak State ------------ > --- POWER ------------ Light Deuterium Engine > --- PROPULSION ------- Wheel Wheel > --- UTILITY ---------- Subdweller Optics Signal Interpreter > --- WEAPON ----------- Improved Light Cannon Improved Light Cannon > --- INVENTORY -------- Wheel Sensor Array Experimental Sensor Array Improved Light Cannon Improved Light Cannon [Rating: 13] Favorites ----------- Power Light Deuterium Engine Engine Light Deuterium Engine Propulsion Wheel Wheel Wheel Utility Signal Interpreter Device Structural Scanner Storage Small Storage Unit Processor Signal Interpreter Weapon Improved Light Cannon Energy Gun EM Pulse Gun Ballistic Gun Light Assault Rifle Ballistic Cannon Improved Light Cannon Build | -11 -10 -10 -10 ------- Run | Yrd Mat Min Sub Slots Evolved . | . . . . Power . | . . . . Propulsion . | . . . . Utility . | . . . . Weapon . | . . . . Parts Attached 40 | 7 24 2 7 Power 4 | 1 2 1 . Engine 4 | 1 2 1 . Core . | . . . . Reactor . | . . . . Propulsion 11 | 1 9 . 1 Treads . | . . . . Leg . | . . . . Wheel 11 | 1 9 . 1 Hover . | . . . . Flight . | . . . . Utility 9 | 3 3 . 3 Device 7 | 2 2 . 3 Storage 1 | 1 . . . Processor 1 | . 1 . . Hackware . | . . . . Protection . | . . . . Artifact . | . . . . Weapon 16 | 2 10 1 3 Energy Gun 5 | 1 4 . . Energy Cannon . | . . . . Ballistic Gun 7 | 1 5 . 1 Ballistic Cannon 4 | . 1 1 2 Launcher . | . . . . Special Weapon . | . . . . Impact Weapon . | . . . . Slashing Weapon . | . . . . Piercing Weapon . | . . . . Special Melee Weapon . | . . . . Unidentified Prototypes . | . . . . Parts Lost 5 | . . 1 4 Power . | . . . . Propulsion 1 | . . . 1 Utility 2 | . . . 2 Weapon 2 | . . 1 1 Highest Loss Streak 2 | . . 1 2 To Critical Strikes . | . . . . Average Slot Usage (%) 98 | . 98 100 97 Engine 13 | . 13 14 12 Wheel 27 | . 27 28 27 Device 12 | . 11 14 13 Storage 3 | . 9 . . Processor 11 | . 7 14 14 Energy Gun 5 | . 11 1 . Ballistic Gun 5 | . 12 . . Ballistic Cannon 17 | . 4 26 28 Naked Turns . | . . . . Heaviest Build 15 | 11 12 14 15 Greatest Support 20 | 10 20 20 20 Greatest Overweight (x) 1 | 1 1 . 1 Average Overweight (x) . | . . . . Largest Inventory Capacity 8 | 8 8 5 5 Average Capacity 5 | 7 6 5 5 Most Carried 8 | 5 8 5 5 Average Carried 5 | 3 5 4 4 Final Capacity 8 | 8 5 5 5 Final Carried 5 | 4 5 5 5 Class Distribution -------------------- 100% | Mutant Dominant Class ---------------- Mutant | -10/Materials Mutant | -10/Mines Mutant | -10/Subcaves Resources | -11 -10 -10 -10 ----------- Run | Yrd Mat Min Sub Matter Collected 869 | 270 329 82 188 Remotely . | . . . . Salvage Created 918 | 175 510 115 118 Parts 96 | 16 67 5 8 Haulers Intercepted . | . . . . Recyclers Shooed . | . . . . Parts Field Recycled . | . . . . Retrieved Matter . | . . . . Parts Self-Destructed 12 | . . . 12 Prevented . | . . . . Kills | -11 -10 -10 -10 ------- Run | Yrd Mat Min Sub Combat Hostiles Destroyed 21 | . 11 3 7 Guns 11 | . 11 . . Cannons 10 | . . 3 7 Classes Destroyed 11 | 2 6 . 3 Worker 4 | . 4 . . Builder 6 | . 6 . . Tunneler 4 | 4 . . . Recycler 1 | 1 . . . Operator 1 | . 1 . . Turret 2 | . . . 2 Watcher 3 | . 3 . . Swarmer 13 | . 9 . 4 Grunt 5 | . 2 3 . Sentry 1 | . . . 1 Subdweller 2 | . . . 2 Best Kill Streak 8 | 3 8 2 4 Combat Bots Only 6 | . 6 2 4 Max Kills in Single Turn 1 | 1 1 1 1 Gunslinging . | . . . . Exploded . | . . . . Melee . | . . . . Uniques/NPCs Destroyed . | . . . . Combat | -11 -10 -10 -10 -------- Run | Yrd Mat Min Sub Hostile Shots Fired 184 | . 78 13 93 Missed 76 | . 37 4 35 Damage Taken 1142 | . 350 107 685 Core 265 | . 88 61 116 Absorbed by Shields . | . . . . Core Remaining (%) 100 | 100 . . . Volleys Fired 123 | 19 65 9 30 Largest 2 | 1 2 2 2 Hottest 80 | 40 80 79 78 Shots Fired 227 | 19 130 19 59 Gun 149 | 19 125 5 . Cannon 78 | . 5 14 59 Launcher . | . . . . Special . | . . . . Kinetic 147 | . 74 14 59 Thermal 29 | 19 10 . . Explosive . | . . . . Electromagnetic 51 | . 46 5 . Robot Hit Streak 10 | 5 8 10 6 Robot Miss Streak 4 | 1 3 3 4 Penetration Max . | . . . . Secondary Targets . | . . . . Shots Hit Robots 129 | 15 78 12 24 Core Hits 62 | 6 39 4 13 Critical Kills . | . . . . Critical Parts Destroyed 2 | . 2 . . Critical Strikes 7 | . 3 1 3 Destroy 2 | . 2 . . Blast 4 | . . 1 3 Corrupt 1 | . 1 . . Melee Attacks . | . . . . Impact . | . . . . Slashing . | . . . . Piercing . | . . . . Sneak Attacks . | . . . . Combat Hostiles . | . . . . Follow-up Attacks . | . . . . Damage Inflicted 1808 | 164 902 222 520 Guns 1028 | 164 821 43 . Cannons 741 | . 42 179 520 Explosions 39 | . 39 . . Melee . | . . . . Ramming . | . . . . Kinetic 1123 | . 424 179 520 Thermal 278 | 164 114 . . Explosive . | . . . . Electromagnetic 407 | . 364 43 . Impact . | . . . . Slashing . | . . . . Piercing . | . . . . Highest Corruption 2 | . 2 2 2 Average Corruption 2 | . 2 2 2 Corruption Purged . | . . . . Corruption Blocked . | . . . . Effects 18 | . 1 9 8 Message Errors 1 | . . 1 . Matter Fused 4 | . . 1 3 Heat Flow Errors 1 | . . . 1 Energy Discharges 5 | . 1 3 1 Parts Rejected 1 | . . . 1 Data Loss (minor) 4 | . . 3 1 Misfires 1 | . . 1 . Weapon Failures 1 | . . . 1 Overload Shots . | . . . . Overflow Damage . | . . . . Projectiles . | . . . . Explosions . | . . . . Melee . | . . . . Knockbacks 6 | . 1 2 3 Impact . | . . . . Kinetic 6 | . 1 2 3 Secondary . | . . . . Self-Inflicted Damage . | . . . . Shots . | . . . . Rammed . | . . . . Targets Rammed . | . . . . Kicked . | . . . . Crushed . | . . . . Highest Temperature 126 | . 72 126 87 Average Temperature 33 | . 26 58 30 Received Heat Transfer 288 | . 54 42 192 Siege Activations . | . . . . Robots Corrupted . | . . . . Combat Hostiles . | . . . . Parts Fried . | . . . . Impact Corruptions . | . . . . Robots Melted . | . . . . Combat Hostiles . | . . . . Parts Melted 1 | 1 . . . Heat Transferred 600 | 375 225 . . Parts Sabotaged . | . . . . Parts Stolen . | . . . . Parts Stripped . | . . . . Power Chain Reactions 1 | . 1 . . Alert | -11 -10 -10 -10 ------- Run | Yrd Mat Min Sub Peak Influence 331 | 25 331 261 . Initial 68 | . 16 68 . Average 170 | 10 189 175 . Maximum Alert Level 1 | . 1 1 . Low Security (%) 47 | 100 44 41 . Level 1 52 | . 55 58 . Level 2 . | . . . . Level 3 . | . . . . Level 4 . | . . . . Level 5 . | . . . . High Security . | . . . . Max Security . | . . . . Squads Dispatched 3 | . 3 . . Investigation 1 | . 1 . . Extermination . | . . . . Reinforcement 2 | . 2 . . Assault . | . . . . Garrison . | . . . . Intercept . | . . . . Searches Triggered . | . . . . Construction Impeded . | . . . . Haulers Reinforced . | . . . . Active Scanning Responses . | . . . . Cargo Convoy Interrupts . | . . . . Stealth | -11 -10 -10 -10 --------- Run | Yrd Mat Min Sub Distress Signals 1 | . 1 . . Communications Jammed . | . . . . Distress Signals . | . . . . Times Spotted 59 | . 25 6 28 Peak Tracking Total 7 | . 7 3 6 Tactical Retreats 6 | . 1 . 5 Traps | -11 -10 -10 -10 ------- Run | Yrd Mat Min Sub Traps Triggered 5 | . 5 . . Indirectly . | . . . . Trap Hack Attempts . | . . . . Triggered . | . . . . Disarmed 6 | . 6 . . Reprogrammed . | . . . . Reused . | . . . . Traps Extracted . | . . . . Installed . | . . . . Triggered . | . . . . Machines | -11 -10 -10 -10 ---------- Run | Yrd Mat Min Sub Machines Disabled 3 | . . 2 1 Max in Single Turn 1 | . . 1 1 Machines Repaired . | . . . . Machines Dismantled . | . . . . Machines Sabotaged . | . . . . Overloaded Fab Kills . | . . . . Hacking | -11 -10 -10 -10 --------- Run | Yrd Mat Min Sub Machines Accessed 7 | . 6 1 . Terminals 4 | . 4 . . Fabricators . | . . . . Repair Stations . | . . . . Recycling Units 2 | . 2 . . Scanalyzers . | . . . . Garrison Access . | . . . . Total Hacks 20 | . 19 1 . Successful 15 | . 14 1 . Failed 5 | . 5 . . Catastrophic 1 | . 1 . . Database Lockouts . | . . . . Manual . | . . . . Terminals 17 | . 17 . . Fabricators . | . . . . Repair Stations . | . . . . Recycling Units 2 | . 2 . . Scanalyzers . | . . . . Garrison Access . | . . . . Terminal Hacks 13 | . 12 1 . Record 3 | . 3 . . Prototype ID Bank 1 | . 1 . . Open Door 1 | . . 1 . Alert Level 1 | . 1 . . Locate Traps 2 | . 2 . . Disarm Traps 1 | . 1 . . Surveillance Status 1 | . 1 . . Investigation Status 1 | . 1 . . Recall Investigation 1 | . 1 . . Zone Layout 1 | . 1 . . Fabricator Hacks . | . . . . Repair Station Hacks . | . . . . Recycling Unit Hacks 2 | . 2 . . Report Inventory 2 | . 2 . . Scanalyzer . | . . . . Garrison Access Hacks . | . . . . Unauthorized Hacks . | . . . . Terminals . | . . . . Fabricators . | . . . . Repair Stations . | . . . . Recycling Units . | . . . . Scanalyzers . | . . . . Garrison Access . | . . . . Data Cores Recovered . | . . . . Used . | . . . . Hacking Detections 5 | . 5 . . Full Trace Events . | . . . . Feedback Events . | . . . . Feedback Blocked . | . . . . Robot Schematics Acquired . | . . . . Robots Built . | . . . . Authchips . | . . . . Time . | . . . . Total Robot Build Rating . | . . . . Part Schematics Acquired . | . . . . Parts Built . | . . . . Authchips . | . . . . Time . | . . . . Total Part Build Rating . | . . . . Parts Repaired . | . . . . Time . | . . . . Parts Recycled . | . . . . Recycled Matter . | . . . . Retrieved Matter . | . . . . Retrieved Components . | . . . . Parts Scanalyzed . | . . . . Part Schematics Acquired . | . . . . Parts Damaged . | . . . . Bothacking | -11 -10 -10 -10 ------------ Run | Yrd Mat Min Sub Used RIF Installer . | . . . . Robots Hacked . | . . . . Non-combat . | . . . . Combat . | . . . . Robot Hacks Applied . | . . . . Relay Couplers Released . | . . . . Fabnet Peak Effective % . | . . . . Robots Rewired . | . . . . Allies Hacked . | . . . . Hacks Repelled . | . . . . Allies | -11 -10 -10 -10 -------- Run | Yrd Mat Min Sub Total Allies 2 | . . 2 . Largest Group 2 | . . 2 1 Highest-Rated Group 41 | . . 41 31 Highest-Rated Ally 31 | . . 31 31 Total Orders . | . . . . Ally Attacks 15 | . . 9 6 Total Damage 253 | . . 126 127 Kills 4 | . . 4 . Allies Corrupted . | . . . . Allies Melted . | . . . . Intel | -11 -10 -10 -10 ------- Run | Yrd Mat Min Sub Robot Analysis Total . | . . . . Derelict Logs Recovered 2 | . . 2 . Drone Launches . | . . . . Drone Recoveries . | . . . . Exploration | -11 -10 -10 -10 ------------- Run | Yrd Mat Min Sub Turns Passed 2161 | 117 852 510 682 Spaces Moved 1968 | 77 747 456 688 Core 16 | 16 . . . Treads . | . . . . Legs . | . . . . Wheels 1952 | 61 747 456 688 Hover . | . . . . Flight . | . . . . Fastest Speed 50 | 50 80 80 80 Average Speed 80 | 79 81 80 80 Slowest Speed 95 | 95 95 80 95 Overloaded Moves . | . . . . Propulsion Burnouts . | . . . . Robots Hopped . | . . . . Cave-ins Triggered . | . . . . Exploration Rate (%) 58 | 4 90 93 47 Regions Visited 3 Branch Regions 2 Pre-discovered Areas . | . . . . Known Exits Taken 2 | . 1 1 . Unknown Exits Taken 1 | 1 . . . Scrap Searched 1 | . . 1 . Spaces Dug . | . . . . Terrain Destroyed 4 | . 4 . . Melee . | . . . . Projectile 1 | . 1 . . AOE 3 | . 3 . . Terrain Rammed . | . . . . Walls Destroyed . | . . . . Machines Disabled . | . . . . Actions | -11 -10 -10 -10 --------- Run | Yrd Mat Min Sub Total 2328 | 112 878 583 755 Wait 145 | . 6 113 26 Move 1965 | 76 746 455 688 Hop . | . . . . Pick Up 31 | 9 18 2 2 Fast Attach 9 | 2 4 1 2 Attach 12 | 4 5 1 2 Detach . | . . . . Swap 19 | 1 15 . 3 Drop 24 | 1 19 2 2 Fire 123 | 19 65 9 30 Melee . | . . . . Ram . | . . . . Kick . | . . . . Crush . | . . . . Escape Stasis . | . . . . Rewire . | . . . . Trap . | . . . . Miscellaneous . | . . . . Route ------- -11/Scrapyard -10/Materials (discovered 4 exits: *Mat x2 / *Min x2) -10/Mines (discovered 3 exits: *Mat x2 / *Sub) -10/Subcaves (discovered 1 exit: *Rec) History --------- Turn | Location | Event 13 | -11/Scrapyard | Discovered new exit (range 15) 118 | -11/Scrapyard | Entered Materials 318 | -10/Materials | Build established: Mutant 520 | -10/Materials | Discovered new exit (range 11) 550 | -10/Materials | Identified exit to Mines 612 | -10/Materials | Discovered new exit (range 4) 809 | -10/Materials | Discovered new exit (range 16) 884 | -10/Materials | Discovered exit to Mines (range 15) 970 | -10/Materials | Entered Mines 986 | -10/Mines | Discovered new exit (range 10) 996 | -10/Mines | Identified exit to Materials 1018 | -10/Mines | Core integrity fell below 50% 1022 | -10/Mines | Learned Materials trap positions 1138 | -10/Mines | Learned location of 1 exit from Materials 1172 | -10/Mines | Found a damaged Exp. Sensor Array with a note attached 1174 | -10/Mines | Found Prototype Device 1230 | -10/Mines | Met a Derelict who couldn't figure out how to use a Trap Extractor 1328 | -10/Mines | Discovered exit to Materials (range 15) 1381 | -10/Mines | Discovered new exit (range 9) 1468 | -10/Mines | Identified exit to Subcaves 1480 | -10/Mines | Entered Subcaves 1480 | -10/Subcaves | Accompanied by 1 ally 1485 | -10/Subcaves | Led the pair of lost Derelicts to an unsafe place 1680 | -10/Subcaves | A swath of the cavern ceiling suddenly collapsed 2057 | -10/Subcaves | Core integrity fell below 20% 2084 | -10/Subcaves | Discovered new exit (range 20) 2134 | -10/Subcaves | Identified exit to Recycling 2162 | -10/Subcaves | Ambushed by Subdweller buried in earth 2162 | -10/Subcaves | Destroyed by 3X-HZ3(R) with Subdweller Machine Gun Last Messages --------------- 02075_ Acquired 10 matter. 02081_ Lgt. Assault Rifle fries itself beyond repair. 02084_ Acquired 6 matter. 02084_ EXIT=FOUND 02085_ Acquired 8 matter. 02098_ Autobeam Turret destroyed. 02098_ Machine disabled. 02109_ Autobeam Turret destroyed. 02113_ Acquired 4 matter. 02114_ Dropped Lgt. Deuterium Engine. 02117_ Acquired Lgt. Ion Engine. 02119_ Acquired 5 matter. 02129_ Acquired 16 matter. 02130_ Acquired 5 matter. 02133_ Acquired 2 matter. 02134_ Acquired 16 matter. 02134_ EXIT=IDENTIFIED: RECYCLING 02137_ Acquired 8 matter. 02160_ Imp. Light Cannon destroyed. 02162_ Sub. Optics destroyed. Map ----- +----------------------------------------------------+ | ??????????????????????????? #"" #??????? | | ?????????????????????????? ###" #??????? | | ?????????????????????????? #### #??????? | | ????????????????????????????# ## #??????? | | ????????????????????????????# #??????? | | ????????????????????????? ## #??????? | | ????????????????????????????????## ##?????? | | ?????????????????????????????????# #?????? | | ????????????????????????????????## #?????? | | ??????????????????????????????### #### #?????? | | ??????????????????????????????# #??# ##?????? | | ??????????????????????????????# ##?# #??????? | | ??????????????????????######### ### #??????? | | ??????????????????????#""" "## ## ##?????? | | ??????????????????????#" ## #?????? | | ??????????????????????#" ## #?????? | | ?????????????????##??##"" * #?????? | | ????????????????## ??#> ### #?????? | | ???????????????## ?##" #?# ##?????? | | ??????????????## ?#" ### #### #??????? | | ??????????????? R ## ### #?# ##??????? | | ????????????????? R ; " "## ## ##???????? | | ??????????????????#; ;;### ## ##????????? | | ???????????????# ##; ;## ## ##?????????? | | ???????????????# ; ;; ####???????????? | | ???????????????# @ #?????????????? | | ?????? " #?????????????? | | ????? " ##?????????????? | | ???? ##;;;;R ;; ##??????????????? | | ????" ??##### ### #???????????????? | | ???? &" ????????##??## #???????????????? | | ?????? #???????????????##### #??????????????? | | ????? ??????????????????????#####??????????????? | | ????? ???????????????????????????????????????????? | | ?????????????????????????????????????????????????? | | ?????????????????????????????????????????????????? | | ?????????????????????????????????????????????????? | | ?????????????????????????????????????????????????? | | ?????????????????????????????????????????????????? | | ?????????????????????????????????????????????????? | | ?????????????????????????????????????????????????? | | ?????????????????????????????????????????????????? | | ?????????????????????????????????????????????????? | | ?????????????????????????????????????????????????? | | ?????????????????????????????????????????????????? | | ?????????????????????????????????????????????????? | | ?????????????????????????????????????????????????? | | ?????????????????????????????????????????????????? | | ?????????????????????????????????????????????????? | | ?????????????????????????????????????????????????? | +----------------------------------------------------+ Best States ------------- Heat Dissipation 25 Energy Generation 14 Energy Capacity 250 Matter Stores 300 Matter Capacity 300 Sight Range 21 Robot Scan Range 14 Terrain Scan Range 16 Terrain Scan Density 10 Evasion (%) 50 Item Schematics ----------------- None Robot Schematics ------------------ None Fabricated ------------ Nothing Alien Tech Used ----------------- None Achievements -------------- GoHome() Challenges ------------ None Game ------ Seed DeepImprinterTriangulator Manual? 0 Play Time 00:47:14 Cumulative 11.1 hours Start 2024.06.10 @ 17:12:54 End 2024.06.10 @ 18:18:38 Sessions 1 Manual Loads 0 Difficulty Rogue Special Mode None Game No. 8 Rogue 7 Adventurer 1 Explorer 0 Win Type - Total 0 Types 0/0/0/0/0/0/0/0/0 Lore% 14 Gallery% 8 Achievement% 12 Wizard Run 0 Options --------- Layout 1 ASCII 0 Keyboard 0 Movement Mouse Keybinds 0 Fullscreen 2 Font 24/Proggy Map View 76x35 Zoom Use 0% Tactical HUD 1 Map Filters NONE Filters NONE Steam 1 RUN: b119db2f-a20f-4cef-9024-33340c5dda55